bitfinex/quotes_ETHUSD_20240621
["timestamp","ask_amount","ask_price","bid_price","bid_amount"]
[1718936534008,2.06427333,3524.4,3524.1,3.25890189]
[1718936534009,2.06427333,3524.3,3524.1,3.25890189]
[1718936534210,2.55577855,3524.3,3524.1,3.25890189]
[1718936534409,2.06427333,3524.2,3524.1,3.25890189]
[1718936534640,2.12564138,3524.2,3524.1,3.0]
[1718936534813,2.12564138,3524.2,3524.0,2.4688]
[1718936534814,2.12564138,3524.2,3524.0,5.4688]
[1718936535132,2.06427333,3524.1,3524.0,5.4688]
[1718936536006,2.55578175,3524.5,3524.0,5.4688]
[1718936536207,2.06427333,3524.4,3524.0,6.02770189]
[1718936536818,2.06427333,3524.4,3524.0,5.4688]
[1718936538449,2.06427333,3524.3,3524.0,5.4688]
[1718936538740,2.06427333,3524.2,3524.0,5.4688]
[1718936538935,2.06427333,3524.1,3524.0,5.4688]
[1718936539453,2.06428808,3524.4,3524.1,2.4688]
[1718936539674,2.06428808,3524.3,3524.1,5.4688]
[1718936539820,2.06428808,3524.2,3524.1,5.4688]
[1718936540337,0.06126772,3524.2,3524.1,5.4688]
[1718936540531,2.06428808,3524.2,3524.1,5.4688]
[1718936540734,2.1255558,3524.2,3524.1,5.4688]
[1718936544321,2.1255558,3524.2,3524.1,2.4688]
[1718936544553,2.61707928,3524.2,3524.1,2.4688]
[1718936545353,2.1255558,3524.2,3524.1,2.4688]
[1718936548249,2.61707934,3524.2,3524.1,2.4688]
[1718936548769,2.61707934,3524.2,3524.0,3.0]
[1718936548933,2.06428808,3524.1,3523.9,3.1202189]
[1718936549135,2.81751955,3524.1,3523.9,3.1202189]
[1718936549334,2.55581162,3524.0,3523.9,0.1202189]
[1718936549765,2.06428808,3524.0,3523.9,0.1202189]
[1718936550575,2.06428808,3524.0,3523.9,2.5890189]
[1718936550878,2.55581213,3524.3,3523.9,5.5890189]
[1718936551073,2.06428808,3524.2,3524.0,3.0]
[1718936551273,2.06428808,3524.1,3524.0,3.0]
[1718936551733,2.06428808,3524.3,3523.9,0.1202189]
[1718936551932,2.06428808,3524.2,3523.9,0.1202189]
[1718936552133,2.06428808,3524.1,3523.9,0.1202189]
[1718936552336,2.06428808,3524.0,3523.9,0.1202189]
[1718936552690,2.06428808,3524.3,3523.9,0.1202189]
[1718936552850,0.85768646,3524.4,3523.9,0.1202189]
[1718936552851,2.06428808,3524.2,3523.9,0.1202189]
[1718936553050,2.06428808,3524.1,3523.9,0.1202189]
[1718936553251,2.06428808,3524.0,3523.9,0.1202189]
[1718936553576,2.06428808,3524.2,3523.9,0.1202189]
[1718936553938,2.06428808,3524.1,3523.9,0.1202189]
[1718936554378,2.06428808,3524.0,3523.9,0.1202189]
[1718936554575,2.55582786,3524.0,3523.9,0.1202189]
[1718936554963,2.55582794,3524.0,3523.9,0.1202189]
[1718936555402,2.06428808,3524.0,3523.9,0.1202189]
[1718936555564,2.06428808,3524.3,3523.9,0.1202189]
[1718936555762,2.06428808,3524.2,3523.9,0.1202189]
[1718936555988,2.06428808,3524.1,3523.9,0.1202189]
[1718936556184,2.06428808,3524.0,3523.9,0.1202189]
[1718936556513,2.06428808,3524.3,3523.9,0.1202189]
[1718936557010,2.55580951,3524.3,3523.9,0.1202189]
[1718936557306,2.55580951,3524.2,3523.9,0.1202189]
[1718936557461,2.06428808,3524.1,3523.9,0.1202189]
[1718936557662,2.06428808,3524.0,3523.9,0.1202189]
[1718936558267,2.06428808,3524.3,3523.9,3.14792079]
[1718936558460,2.06428808,3524.2,3524.0,3.0]
[1718936558806,2.2991,3525.0,3524.0,3.0]
[1718936558807,2.06428808,3524.1,3524.0,3.0]
[1718936559461,2.06428808,3524.4,3524.0,3.0]
[1718936559694,2.06428808,3524.3,3524.0,3.0]
[1718936560012,2.06428808,3524.2,3524.0,3.0]
[1718936560316,0.871,3524.6,3524.0,3.0]
[1718936560317,2.06428808,3524.1,3524.0,3.0]
[1718936560587,2.06428808,3524.3,3524.0,3.0]
[1718936560791,0.49151279,3524.5,3524.0,3.0]
[1718936560792,2.06428808,3524.2,3524.0,3.0]
[1718936560963,2.06428808,3524.1,3524.0,3.0]
[1718936561159,2.06428808,3524.4,3524.0,3.0]
[1718936563068,0.871,3524.6,3524.0,3.0]
[1718936563069,2.06428808,3524.3,3524.0,3.0]
[1718936563265,0.49151283,3524.5,3524.0,3.0]
[1718936563266,2.06428808,3524.2,3524.0,3.0]
[1718936563571,2.06428808,3524.1,3524.0,3.0]
[1718936563906,0.49151488,3524.4,3524.0,3.0]
[1718936563907,2.55580296,3524.3,3524.0,3.0]
[1718936564119,2.06428808,3524.2,3523.9,0.1202189]
[1718936566819,2.06428808,3524.1,3523.9,0.1202189]
[1718936566973,2.06428808,3524.0,3523.9,0.1202189]
[1718936567172,2.06428808,3524.2,3523.9,0.1202189]
[1718936567401,2.06428808,3524.1,3523.9,0.1202189]
[1718936567737,2.06428808,3524.0,3523.9,2.5890189]
[1718936568019,2.06428808,3524.2,3523.9,5.5890189]
[1718936568172,2.06428808,3524.2,3524.0,3.0]
[1718936569883,2.06428808,3524.1,3524.0,3.0]
[1718936570072,2.06428808,3524.2,3524.0,3.0]
[1718936570275,2.06428808,3524.1,3524.0,3.0]
[1718936570509,2.06428808,3524.2,3524.0,3.0]
[1718936571924,2.06428808,3524.2,3523.9,0.1202189]
[1718936572134,0.06096664,3524.1,3523.9,0.1202189]
[1718936572297,2.06428808,3524.0,3523.9,0.1202189]
[1718936572501,2.55581893,3524.0,3523.9,0.1202189]
[1718936572815,2.61678557,3524.0,3523.9,0.1202189]
[1718936572997,2.61678623,3524.0,3523.9,0.1202189]
[1718936575907,2.12525472,3524.0,3523.9,0.1202189]
[1718936576131,2.61696329,3524.0,3523.9,0.1202189]
[1718936576424,2.12541475,3524.0,3523.9,0.1202189]
[1718936576582,2.6169624,3524.0,3523.9,0.1202189]
[1718936579235,2.61694769,3524.0,3523.9,0.1202189]
[1718936581598,2.61695708,3524.0,3523.9,0.1202189]
[1718936583492,2.61695377,3524.0,3523.9,0.1202189]
[1718936584625,2.61696973,3524.0,3523.9,0.1202189]
[1718936586531,2.61696973,3524.0,3523.9,2.5890189]
[1718936586697,2.55600309,3524.0,3523.9,6.14792079]
[1718936586896,2.0644448,3524.0,3523.9,6.14792079]
[1718936587132,2.12539284,3524.0,3523.9,6.14792079]
[1718936587307,2.61695113,3524.0,3523.9,6.14792079]
[1718936587830,2.61692551,3524.0,3523.9,5.5890189]
[1718936589827,2.61692551,3524.0,3523.9,3.1202189]
[1718936590847,2.12539284,3524.0,3523.9,0.1202189]
[1718936591238,2.6169434,3524.0,3523.9,0.1202189]
[1718936591720,2.5889434,3524.0,3523.9,0.1202189]
[1718936592561,2.5889434,3524.0,3523.9,2.5890189]
[1718936592744,2.5889434,3524.0,3523.9,5.84792079]
[1718936592933,2.52799536,3524.0,3523.9,5.84792079]
[1718936593133,2.4469806,3524.0,3523.9,5.84792079]
[1718936593333,1.95543004,3524.0,3523.9,5.84792079]
[1718936594528,1.95543004,3524.0,3523.9,3.37912079]
[1718936594862,1.95543004,3524.0,3523.9,0.1202189]
[1718936595069,1.95543004,3524.0,3523.9,3.1202189]
[1718936595533,1.95543004,3524.0,3523.9,0.1202189]
[1718936596553,1.95543004,3524.0,3523.9,2.5890189]
[1718936596851,1.8944448,3524.0,3523.9,3.1202189]
[1718936597051,0.49152344,3524.5,3523.9,3.1202189]
[1718936597219,0.871,3524.6,3523.9,3.1202189]
[1718936597220,0.06098896,3524.0,3523.9,0.1202189]
[1718936597426,0.871,3524.6,3523.9,0.1202189]
[1718936597748,0.06098896,3524.5,3523.9,0.1202189]
[1718936600946,0.871,3524.6,3523.9,0.1202189]
[1718936601551,0.06105957,3524.5,3523.9,0.1202189]
[1718936609970,0.06105957,3524.5,3524.0,2.4688]
[1718936610174,0.06105957,3524.5,3524.0,6.3398]
[1718936610463,0.871,3525.0,3524.1,0.64600189]
[1718936610665,0.871,3525.0,3524.1,3.0]
[1718936610666,0.06101869,3524.4,3524.1,3.0]
[1718936611170,0.49152393,3525.1,3524.0,5.4688]
[1718936611477,0.871,3524.9,3524.1,1.38300189]
[1718936611669,0.871,3524.9,3524.1,3.0]
[1718936612037,0.871,3524.9,3524.0,2.4688]
[1718936612038,0.06101869,3524.8,3524.0,5.4688]
[1718936613137,1.90263418,3524.7,3524.0,5.4688]
[1718936613340,1.90263418,3524.6,3524.0,5.4688]
[1718936613537,1.90263418,3524.5,3524.0,5.4688]
[1718936613773,1.90263418,3524.5,3524.1,1.38300189]
[1718936614068,0.49147038,3524.8,3524.1,4.38300189]
[1718936614069,1.96365287,3524.4,3524.1,4.38300189]
[1718936614271,1.90263418,3524.3,3524.1,3.0]
[1718936614501,1.90263418,3524.3,3524.0,5.4688]
[1718936614774,1.96365287,3524.2,3524.0,3.0]
[1718936614944,1.90263418,3524.1,3524.0,3.0]
[1718936615146,1.90263418,3524.1,3524.0,0.64600189]
[1718936615358,3.96682454,3524.7,3524.0,0.64600189]
[1718936615564,0.06101869,3524.1,3523.9,3.1202189]
[1718936615882,3.96682318,3524.0,3523.9,3.1202189]
[1718936616100,4.02784187,3524.0,3523.9,3.1202189]
[1718936616251,4.02784187,3524.0,3523.9,3.76622079]
[1718936616653,1.96400621,3524.0,3523.9,3.76622079]
[1718936616852,1.90298752,3524.0,3523.9,3.76622079]
[1718936617053,2.06419253,3524.0,3523.9,3.76622079]
[1718936617287,1.96400621,3524.0,3523.9,3.76622079]
[1718936617481,1.90298752,3524.0,3523.9,3.76622079]
[1718936617688,3.96718031,3524.0,3523.9,3.76622079]
[1718936617976,4.028199,3524.0,3523.9,3.76622079]
[1718936618754,1.96400621,3524.0,3523.9,3.76622079]
[1718936618963,3.96726806,3524.0,3523.9,3.76622079]
[1718936619365,1.96410285,3524.0,3523.9,3.76622079]
[1718936619774,4.02839302,3524.0,3523.9,3.76622079]
[1718936620188,4.02835444,3524.0,3523.9,3.76622079]
[1718936622055,4.02835143,3524.0,3523.9,3.76622079]
[1718936623191,4.0283513,3524.0,3523.9,3.76622079]
[1718936624072,4.02834148,3524.0,3523.9,3.76622079]
[1718936624466,1.96410285,3524.0,3523.9,3.76622079]
[1718936624668,1.90298752,3524.0,3523.9,3.76622079]
[1718936624866,3.96720699,3524.0,3523.9,3.76622079]
[1718936625071,4.02840038,3524.0,3523.9,3.76622079]
[1718936625493,4.02844253,3524.0,3523.9,3.76622079]
[1718936625860,1.96418091,3524.0,3523.9,3.76622079]
[1718936626081,1.90298752,3524.0,3523.9,3.76622079]
[1718936626561,1.90298752,3524.6,3523.9,3.76622079]
[1718936626783,0.06119339,3524.0,3523.9,3.9912189]
[1718936627019,0.06119339,3524.5,3523.9,7.01038642]
[1718936627159,0.05915361,3524.0,3523.9,4.26645512]
[1718936627354,0.49141484,3525.1,3523.9,5.11433868]
[1718936627626,2.2991,3525.6,3523.9,5.11433868]
[1718936627627,3.96662009,3525.0,3524.7,3.3398]
[1718936627781,3.96662009,3524.9,3524.7,3.3398]
[1718936627988,0.05922421,3524.9,3524.8,3.0]
[1718936628163,2.12296427,3524.9,3524.8,3.0]
[1718936628479,4.02586999,3524.9,3524.8,3.0]
[1718936629298,1.96211646,3524.9,3524.8,3.0]
[1718936629477,1.90289225,3524.9,3524.8,3.0]
[1718936629678,1.96211646,3524.9,3524.8,3.0]
[1718936629882,1.96211646,3524.9,3524.8,3.63398]
[1718936630081,1.90289225,3524.9,3524.8,3.63398]
[1718936630281,0.49137112,3525.4,3524.8,3.63398]
[1718936630507,3.96735663,3525.3,3524.9,0.871]
[1718936630713,3.96735663,3525.2,3524.9,0.871]
[1718936630920,1.90364416,3525.1,3524.9,1.568378]
[1718936631207,1.90364416,3525.0,3524.9,1.568378]
[1718936631425,0.49135817,3525.7,3524.9,1.568378]
[1718936631576,4.45876046,3525.6,3524.9,1.568378]
[1718936631778,3.96743158,3525.5,3524.9,1.568378]
[1718936632026,3.96743158,3525.4,3524.9,1.568378]
[1718936632186,1.90385162,3525.3,3525.0,0.7037178]
[1718936632373,0.49132151,3525.7,3525.0,2.4688]
[1718936632575,3.96742219,3525.6,3525.0,5.4688]
[1718936632878,3.96742219,3525.5,3525.0,5.4688]
[1718936633082,1.9038727,3525.4,3525.0,5.4688]
[1718936633392,0.49132177,3525.7,3525.0,5.4688]
[1718936633588,3.96787543,3525.6,3525.0,5.4688]
[1718936633801,3.96787543,3525.5,3525.0,5.4688]
[1718936634019,3.96787543,3525.4,3525.1,3.0]
[1718936634197,1.90432409,3525.3,3525.1,3.0]
[1718936634407,0.49134013,3525.7,3525.0,2.4688]
[1718936634630,0.05978528,3525.2,3525.0,2.4688]
[1718936634810,3.1701,3525.8,3525.0,3.10278]
[1718936635016,0.05978528,3525.1,3525.0,2.4688]
[1718936635188,0.49134015,3525.6,3525.0,2.4688]
[1718936635509,3.1701,3525.8,3525.0,2.4688]
[1718936635510,3.96816958,3525.5,3525.0,2.4688]
[1718936635719,1.9045581,3525.4,3525.0,2.4688]
[1718936635920,1.9644474,3525.4,3525.0,2.4688]
[1718936636084,0.0598893,3525.4,3525.0,2.4688]
[1718936636285,0.49133333,3525.7,3525.0,2.4688]
[1718936636608,0.05987072,3525.3,3525.0,2.4688]
[1718936636921,0.05987072,3525.2,3525.0,2.4688]
[1718936637083,0.49132957,3525.7,3525.0,2.4688]
[1718936637280,0.05987072,3525.1,3525.0,2.4688]
[1718936637527,3.1701,3525.8,3525.0,3.83978]
[1718936637819,4.45950504,3525.7,3525.1,3.0]
[1718936638116,4.45950504,3525.7,3525.0,2.4688]
[1718936638117,4.45950504,3525.6,3525.0,2.4688]
[1718936638318,1.90459218,3525.5,3525.0,2.4688]
[1718936638496,0.4913295,3525.7,3525.0,2.4688]
[1718936638696,3.96833365,3525.6,3525.0,2.4688]
[1718936639006,1.90475,3525.5,3525.0,2.4688]
[1718936639206,0.49132813,3525.7,3525.0,2.4688]
[1718936639520,3.96830944,3525.6,3525.0,2.4688]
[1718936639718,1.90472803,3525.5,3525.0,2.4688]
[1718936639923,0.49132896,3525.7,3525.0,2.4688]
[1718936640129,3.96829948,3525.6,3525.0,2.4688]
[1718936640415,3.1701,3525.8,3524.9,3.0]
[1718936640416,4.45974079,3525.5,3524.9,3.0]
[1718936640628,3.1701,3525.8,3524.9,3.0]
[1718936640629,1.90471808,3525.4,3524.9,3.0]
[1718936640925,1.90471808,3525.3,3524.8,5.4688]
[1718936641134,1.3623711,3525.7,3524.9,1.37098]
[1718936641431,3.96829518,3525.6,3524.9,4.37098]
[1718936641598,4.45966628,3525.5,3524.9,4.37098]
[1718936641800,0.871,3525.7,3524.9,4.37098]
[1718936642003,2.06368924,3525.6,3524.9,4.37098]
[1718936642223,1.90465819,3525.5,3524.9,4.37098]
[1718936642503,2.39601281,3525.5,3524.9,4.37098]
[1718936642720,1.90465819,3525.4,3524.9,4.37098]
[1718936642939,0.49135462,3525.6,3524.9,4.37098]
[1718936643112,1.90454322,3525.5,3524.9,4.37098]
[1718936643319,1.90454322,3525.4,3524.9,4.37098]
[1718936643527,1.90454322,3525.4,3525.0,1.508078]
[1718936643707,1.96447708,3525.3,3525.0,4.508078]
[1718936644038,0.05993386,3525.3,3525.0,3.0]
[1718936644223,0.05993386,3525.3,3524.8,5.4688]
[1718936644427,1.36236196,3525.7,3524.8,5.4688]
[1718936644603,3.96818102,3525.6,3524.9,1.37098]
[1718936644804,4.45954298,3525.5,3524.9,4.37098]
[1718936645005,1.90450977,3525.4,3524.9,4.37098]
[1718936645642,0.05993386,3525.3,3524.9,4.37098]
[1718936646044,1.36235324,3525.7,3524.9,4.37098]
[1718936646333,3.96854447,3525.6,3524.9,4.37098]
[1718936646545,4.45989949,3525.5,3524.9,4.37098]
[1718936646747,1.90485335,3525.4,3524.9,4.37098]
[1718936646912,0.05993386,3525.4,3524.9,4.37098]
[1718936647109,1.36235197,3525.7,3524.9,4.37098]
[1718936647310,3.96869296,3525.6,3524.9,4.37098]
[1718936647640,4.46004493,3525.5,3524.9,4.37098]
[1718936647940,1.90501379,3525.4,3524.9,4.37098]
[1718936648136,0.05993386,3525.4,3524.9,4.37098]
[1718936648356,1.36235218,3525.7,3524.9,4.37098]
[1718936648507,3.96877266,3525.6,3524.9,4.37098]
[1718936648707,4.46012484,3525.5,3524.9,4.37098]
[1718936648910,1.90509224,3525.4,3524.9,4.37098]
[1718936649115,0.05993386,3525.4,3525.0,1.508078]
[1718936649332,1.36235439,3525.7,3525.0,4.508078]
[1718936649548,1.90513069,3525.6,3525.0,4.508078]
[1718936649844,4.52007268,3525.6,3525.0,4.508078]
[1718936650149,4.52007268,3525.6,3525.2,3.3398]
[1718936650150,2.3964784,3525.5,3525.2,3.3398]
[1718936650311,2.2991,3526.0,3525.3,3.0]
[1718936650536,2.3965167,3525.9,3525.3,3.0]
[1718936650739,1.90520311,3525.8,3525.3,3.0]
[1718936651172,0.05985214,3525.7,3525.3,3.0]
[1718936651473,0.49131359,3525.9,3525.3,3.0]
[1718936651474,1.90520311,3525.6,3525.3,3.0]
[1718936651632,0.05985214,3525.6,3525.3,3.0]
[1718936651976,0.49131359,3525.9,3525.3,3.70374878]
[1718936652279,0.49131359,3526.2,3525.3,3.70374878]
[1718936652490,1.90567511,3526.1,3525.3,3.70374878]
[1718936652649,1.90567511,3526.0,3525.4,0.70435488]
[1718936653260,1.96562385,3525.9,3525.4,0.70435488]
[1718936653469,0.05994874,3525.9,3525.4,0.70435488]
[1718936653977,0.05994874,3525.8,3525.4,0.70435488]
[1718936654179,0.49127284,3526.2,3525.5,0.70441549]
[1718936654347,0.05994874,3525.7,3525.5,0.70441549]
[1718936654537,0.49127284,3526.2,3525.5,0.70441549]
[1718936654736,0.05994874,3525.6,3525.5,0.70441549]
[1718936654952,0.49127284,3526.2,3525.5,0.70441549]
[1718936655256,1.90580078,3526.1,3525.5,0.70441549]
[1718936655682,1.96574952,3526.0,3525.5,0.70441549]
[1718936655885,1.90588201,3525.9,3525.5,0.70441549]
[1718936656083,0.49126428,3526.2,3525.5,0.70441549]
[1718936656293,1.96558998,3526.1,3525.5,0.70441549]
[1718936656612,1.90564124,3526.0,3525.5,0.70441549]
[1718936656758,1.90564124,3526.0,3525.3,3.0]
[1718936657208,1.96558998,3525.9,3525.3,3.0]
[1718936657432,0.05994874,3525.9,3525.3,3.0]
[1718936657901,0.05994874,3525.8,3525.3,3.0]
[1718936658056,0.49126428,3526.2,3525.3,3.63398]
[1718936658257,1.90568712,3526.1,3525.3,3.63398]
[1718936658472,1.96563586,3526.1,3525.3,3.63398]
[1718936658674,1.90568712,3526.0,3525.3,3.63398]
[1718936659114,0.05994874,3525.9,3525.3,3.63398]
[1718936659256,0.49127654,3526.2,3525.4,0.697378]
[1718936659456,1.96553226,3526.1,3525.4,0.697378]
[1718936659668,1.90558352,3526.0,3525.4,0.697378]
[1718936660098,0.05994874,3525.9,3525.4,0.697378]
[1718936660395,0.49127654,3526.2,3525.4,0.697378]
[1718936660693,1.90564217,3526.1,3525.4,0.697378]
[1718936661073,0.05994874,3526.0,3525.4,0.697378]
[1718936661388,0.05994874,3526.0,3525.5,0.7037178]
[1718936661592,0.49127654,3526.2,3525.6,2.4688]
[1718936661780,0.05994874,3525.9,3525.6,5.4688]
[1718936662096,0.0600007,3525.8,3525.6,5.4688]
[1718936662292,2.2991,3526.3,3525.7,0.77408958]
[1718936662483,2.45699526,3526.2,3525.7,3.77408958]
[1718936662799,1.90574099,3526.1,3525.7,3.77408958]
[1718936662969,2.39699102,3526.1,3525.7,3.77408958]
[1718936663174,2.45699172,3526.0,3525.7,3.77408958]
[1718936663382,0.0600007,3526.0,3525.7,3.77408958]
[1718936663588,0.49125003,3526.4,3525.8,0.62428896]
[1718936663894,1.90644639,3526.3,3525.8,0.62428896]
[1718936664091,0.0600007,3526.2,3525.7,3.0]
[1718936664295,1.90644639,3526.1,3525.6,2.4688]
[1718936664674,1.96644709,3526.0,3525.6,2.4688]
[1718936664862,0.0600007,3526.0,3525.6,2.4688]
[1718936665063,0.49125071,3526.4,3525.7,0.7037178]
[1718936665264,1.96700009,3526.3,3525.7,3.7037178]
[1718936665576,1.90699939,3526.2,3525.7,3.7037178]
[1718936665981,1.96700009,3526.1,3525.7,3.7037178]
[1718936666184,1.90699939,3526.0,3525.7,3.0]
[1718936666485,0.0600007,3525.9,3525.6,2.4688]
[1718936666994,0.49125071,3526.4,3525.6,2.4688]
[1718936667321,1.90729646,3526.3,3525.7,0.7037178]
[1718936667509,1.96729716,3526.3,3525.7,3.7037178]
[1718936667680,1.90729646,3526.2,3525.7,3.7037178]
[1718936668118,1.96729716,3526.1,3525.7,3.7037178]
[1718936668301,1.90729646,3526.0,3525.7,3.7037178]
[1718936668613,1.90729646,3526.0,3525.8,0.61725178]
[1718936668793,1.96729716,3525.9,3525.8,0.61725178]
[1718936668996,0.0600007,3525.9,3525.7,3.0]
[1718936669240,0.49124751,3526.4,3525.6,2.4688]
[1718936669386,1.90759857,3526.3,3525.6,2.4688]
[1718936669585,1.96759927,3526.3,3525.6,2.4688]
[1718936669815,1.90759857,3526.2,3525.6,2.4688]
[1718936669981,1.90759857,3526.2,3525.6,3.1725178]
[1718936670181,1.90759857,3526.2,3525.7,3.0]
[1718936670378,1.96759927,3526.1,3525.7,3.0]
[1718936670610,1.90759857,3526.0,3525.7,3.0]
[1718936670817,1.90759857,3526.0,3525.8,0.61725178]
[1718936671183,1.967647,3525.9,3525.8,0.61725178]
[1718936671386,1.967647,3525.9,3525.7,3.0]
[1718936671585,1.9076463,3525.8,3525.6,2.4688]
[1718936672141,1.967647,3525.7,3525.6,3.3398]
[1718936672279,1.9076463,3525.7,3525.6,7.0435178]
[1718936672483,0.4912402,3526.7,3525.7,2.4688]
[1718936672719,1.96792976,3526.6,3525.9,0.871]
[1718936672889,1.90792906,3526.5,3525.9,1.87535178]
[1718936673097,1.90792906,3526.5,3525.9,4.87535178]
[1718936673414,1.96792976,3526.4,3525.9,4.87535178]
[1718936673620,1.90792906,3526.3,3526.0,0.73441518]
[1718936674185,1.96792976,3526.2,3526.0,0.73441518]
[1718936674381,0.0600007,3526.2,3526.0,0.73441518]
[1718936674625,0.49118574,3526.6,3526.1,0.70742152]
[1718936674799,0.06014184,3526.1,3525.9,3.871]
[1718936674998,0.49118574,3526.7,3525.9,3.871]
[1718936675299,1.96834561,3526.6,3525.9,3.871]
[1718936675514,1.90820377,3526.5,3526.0,0.63398]
[1718936675806,1.90820377,3526.5,3526.4,2.4688]
[1718936676006,1.90820377,3526.6,3526.4,5.4688]
[1718936676241,1.90820377,3526.5,3526.4,5.4688]
[1718936676445,0.49118574,3527.0,3526.4,5.4688]
[1718936676721,1.90882281,3526.9,3526.4,5.4688]
[1718936677621,1.90882281,3526.8,3526.4,5.4688]
[1718936677790,0.49111704,3527.0,3526.4,5.4688]
[1718936677991,1.90938952,3526.9,3526.4,6.10278]
[1718936678420,1.90938952,3526.9,3526.6,0.871]
[1718936678719,1.90938952,3526.9,3526.5,3.0]
[1718936678922,0.49111114,3527.3,3526.4,6.97378]
[1718936679115,1.90973648,3527.2,3526.5,1.247378]
[1718936679425,2.2991,3527.1,3526.5,3.0]
[1718936679623,2.40084762,3527.0,3526.1,6.3398]
[1718936679932,1.90973648,3526.9,3526.1,6.3398]
[1718936680225,1.90973648,3526.9,3526.2,1.434378]
[1718936680422,1.90973648,3526.9,3526.2,4.434378]
[1718936680603,1.90973648,3526.8,3526.2,4.434378]
[1718936680793,0.49115032,3527.0,3526.2,4.434378]
[1718936680993,1.90961216,3526.9,3526.3,1.5778158]
[1718936681219,1.90961216,3526.9,3526.3,4.5778158]
[1718936681691,1.90961216,3526.9,3526.3,2.4488158]
[1718936681996,1.90961216,3526.9,3526.4,2.4688]
[1718936682208,0.49112621,3527.2,3526.5,0.79176158]
[1718936682408,1.90957504,3527.1,3526.5,3.79176158]
[1718936682704,1.96990621,3527.1,3526.5,3.79176158]
[1718936682923,1.90957504,3527.0,3526.6,3.62405774]
[1718936683236,1.90957504,3527.0,3526.6,0.62405774]
[1718936683389,1.96990621,3526.9,3526.6,0.62405774]
[1718936683588,0.06033117,3526.9,3526.6,0.62405774]
[1718936683892,0.49112207,3527.2,3526.7,0.60928577]
[1718936684098,1.90988615,3527.1,3526.7,0.60928577]
[1718936684410,0.06033117,3527.0,3526.7,0.60928577]
[1718936684808,0.49112207,3527.2,3526.7,0.60928577]
[1718936685127,1.90992069,3527.1,3526.7,0.60928577]
[1718936685332,1.97025186,3527.1,3526.7,0.60928577]
[1718936685502,1.90992069,3527.0,3526.7,0.60928577]
[1718936685896,0.06033117,3526.9,3526.7,0.60928577]
[1718936686118,0.49112207,3527.2,3526.7,0.60928577]
[1718936686317,1.90975868,3527.1,3526.7,0.60928577]
[1718936686520,0.06033117,3527.0,3526.7,0.60928577]
[1718936687030,0.49112144,3527.2,3526.7,0.60928577]
[1718936687329,1.90947203,3527.1,3526.7,0.60928577]
[1718936687529,1.9698032,3527.1,3526.7,0.60928577]
[1718936687731,1.90947203,3527.0,3526.7,0.60928577]
[1718936688110,0.06033117,3526.9,3526.7,0.60928577]
[1718936688310,0.49112144,3527.2,3526.7,0.60928577]
[1718936688495,1.90941986,3527.1,3526.7,0.60928577]
[1718936688699,0.06033117,3527.0,3526.7,0.60928577]
[1718936689402,0.49112144,3527.2,3526.7,0.60928577]
[1718936689603,1.90870863,3527.1,3526.7,0.60928577]
[1718936689835,1.9690398,3527.1,3526.7,0.60928577]
[1718936690013,1.90870863,3527.0,3526.7,0.60928577]
[1718936690431,0.06033117,3526.9,3526.7,0.60928577]
[1718936690935,0.4911225,3527.2,3526.7,0.60928577]
[1718936691134,1.90857088,3527.1,3526.7,0.60928577]
[1718936691430,1.96890205,3527.1,3526.7,0.60928577]
[1718936691631,1.90857088,3527.0,3526.7,0.60928577]
[1718936692134,0.06035714,3526.9,3526.8,0.21043435]
[1718936692332,1.3621225,3527.6,3526.8,0.21043435]
[1718936692537,0.06035714,3526.9,3526.8,0.21043435]
[1718936692698,0.4911225,3527.5,3526.8,0.21043435]
[1718936692904,1.96900762,3527.4,3526.8,0.21043435]
[1718936693145,1.90865048,3527.3,3526.8,0.21043435]
[1718936693336,1.96900392,3527.3,3526.8,0.21043435]
[1718936693503,1.90865048,3527.2,3526.8,0.21043435]
[1718936694014,0.871,3527.6,3526.8,0.21043435]
[1718936694015,1.96900392,3527.1,3526.8,0.21043435]
[1718936694215,0.06035344,3527.1,3526.8,0.21043435]
[1718936694600,1.36210827,3527.6,3526.8,0.21043435]
[1718936694804,0.06035344,3527.0,3526.8,0.21043435]
[1718936695130,0.06035344,3526.9,3526.8,0.21043435]
[1718936695436,1.36210827,3527.6,3526.8,0.21043435]
[1718936695652,1.90900613,3527.5,3526.8,0.21043435]
[1718936695937,2.46046784,3527.5,3526.8,0.21043435]
[1718936696237,4.20810613,3527.4,3526.7,0.60928577]
[1718936696435,2.40011928,3527.3,3526.7,0.60928577]
[1718936696607,1.90900613,3527.2,3526.7,0.60928577]
[1718936697019,0.06103287,3527.1,3526.7,0.60928577]
[1718936697444,1.90909778,3527.0,3526.7,0.60928577]
[1718936697633,0.49111315,3527.3,3526.8,1.18502858]
[1718936697838,0.06103287,3526.9,3526.8,1.18502858]
[1718936698037,0.49111315,3527.3,3526.8,1.18502858]
[1718936698238,0.06103287,3526.9,3526.8,1.18502858]
[1718936698427,0.49111315,3527.3,3526.8,1.18502858]
[1718936698631,0.06103287,3526.9,3526.7,0.60928577]
[1718936698848,0.49111315,3527.3,3526.7,0.60928577]
[1718936699018,0.06103287,3526.8,3526.7,0.60928577]
[1718936699551,0.49112326,3527.3,3526.7,0.60928577]
[1718936699721,0.06103287,3526.8,3526.6,3.0]
[1718936699916,0.49112326,3527.3,3526.6,3.0]
[1718936700123,1.9088132,3527.2,3526.6,3.0]
[1718936700421,0.06103287,3527.1,3526.6,3.0]
[1718936700753,1.90879265,3527.0,3526.6,4.37098]
[1718936701116,1.96982552,3526.9,3526.6,4.37098]
[1718936701318,0.06103287,3526.9,3526.6,4.37098]
[1718936701568,0.49112326,3527.3,3526.7,1.508078]
[1718936701868,0.06103287,3526.8,3526.7,1.508078]
[1718936702020,0.49111475,3527.3,3526.7,1.508078]
[1718936702335,1.90879741,3527.2,3526.8,1.1878078]
[1718936703723,0.871,3527.0,3526.6,3.0]
[1718936704025,2.2991,3526.8,3526.6,3.0]
[1718936704271,2.39991216,3526.7,3526.6,3.0]
[1718936704851,1.90879741,3526.7,3526.6,3.0]
[1718936705037,2.40000663,3526.7,3526.6,3.0]
[1718936705433,2.46117682,3526.7,3526.6,3.0]
[1718936705874,1.9699676,3526.7,3526.6,3.0]
[1718936706163,6.08410385,3526.7,3526.6,3.0]
[1718936706351,2.2991,3526.6,3525.8,3.0]
[1718936706558,3.27099709,3526.5,3525.8,3.0]
[1718936706765,2.39999709,3526.4,3525.8,3.0]
[1718936706957,1.90879741,3526.3,3525.8,3.0]
[1718936708189,2.40004771,3526.3,3525.8,3.0]